{"text_format":"1","workbook":"xlsx","n_sheets":6,"sheets":["表紙","自己採点シート","学習自己点検シート ","単位修得状況確認表（共通教育科目，外国人留学生）","単位修得状況確認表（専門教育科目）","累積グラフ"],"not_rendered":{"charts":9,"images":2,"macros":1,"external_links":0,"defined_names":5,"comments":0,"pivot_tables":0},"unopened":[],"bounds":{"document_bytes":16777216,"sheet_cells":100000,"rows_first":2000,"rows_last":500,"rows_between":2000,"halvings":0,"cell_chars":16384,"cell_head_chars":4096},"cells_cut":0,"cells_raw":0,"read":"whole","date_system":"1900"}

{"sheet":"表紙","index":0,"n_rows":34,"n_cols":2,"rows_kept":34,"cut":false,"hidden":false,"merged":[]}
[]
[]
[]
[]
[]
[]
[]
[]
[]
[]
[]
[null,"鹿児島大学工学部ポートフォリオ"]
[]
[]
[]
[]
[]
[]
[]
[]
[]
[]
[]
[]
[]
[]
[]
[]
[]
[]
[]
[null,"学科："]
[null,"氏名："]
[null,"学籍番号："]

{"sheet":"自己採点シート","index":1,"n_rows":22,"n_cols":21,"rows_kept":22,"cut":false,"hidden":false,"merged":[[12,2,12,5],[3,10,3,11],[3,19,3,20],[9,2,9,5],[10,2,10,5],[11,2,11,5],[19,2,19,5],[20,2,20,5],[21,2,21,5],[13,2,13,5],[14,2,14,5],[15,2,15,5],[16,2,16,5],[17,2,17,5],[18,2,18,5]]}
[]
[null,"自己採点シート"]
[]
[null,null,null,null,null,null,null,null,null,"学籍番号",null,null,null,null,null,null,null,null,"氏名"]
[]
[null,"■学生のみなさんへ"]
[null,null,"今期受講した科目に関して、以下の項目に対して自己採点をしてください。(１０点満点)"]
[]
[]
[null,null,"項目",null,null,null,"2017年度\n前期","2017年度\n後期","2018年度\n前期","2018年度\n後期","2019年度\n前期","2019年度\n後期","2018年度\n前期","2018年度\n後期","2019年度\n前期","2019年度\n後期","2020年度\n前期","2020年度\n後期","2020年度\n前期","2020年度\n後期","卒業時"]
[null,1,"工学に関しての基礎知識\n（物理・化学・数学・情報など）"]
[null,2,"各工学分野での基礎知識\n（専門科目など）"]
[null,3,"人前での発表能力"]
[null,4,"人と話し合ったり議論する能力"]
[null,5,"チームの一員として取り組める（チームワーク）能力"]
[null,6,"英語、その他外国語による表現力"]
[null,7,"読書、講習会への参加、英会話や情報処理学習など大学以外での学習による自己啓発・生涯学習能力"]
[null,8,"社会性や国際感覚が身についているか。"]
[null,9,"倫理観、責任感が身についているか。"]
[null,10]
[null,11]
[null,12]

{"sheet":"学習自己点検シート ","index":2,"n_rows":68,"n_cols":13,"rows_kept":68,"cut":false,"hidden":false,"merged":[[4,8,4,9],[4,11,4,12],[7,2,7,12]]}
[]
[null,null,null,null,null,null,null,null,null,null,null,"年度","期"]
[null,"学習自己点検シート"]
[]
[null,null,null,null,null,null,null,"学籍番号",null,null,"氏名"]
[]
[null,"■学生のみなさんへ"]
[null,null,"学生生活全般に関して自己点検をお願いしています。今期受講した科目に関して、以下の質問項目に答えてください。面談時、指導教員（アドバイザー）の先生方から回答に対する具体的なアドバイスを受けてください。"]
[]
[]
[null,"■回答項目"]
[]
[null,1,"今期の目標は達成できましたか。"]
[]
[]
[]
[]
[null,2,"講義への取り組みは積極的でしたか。また、積極的に取り組むことができなかった講義は具体的に何ですか。"]
[]
[]
[]
[]
[null,3,"講義毎に勉強方法がつかめていますか。"]
[]
[]
[]
[]
[null,4,"それぞれの講義の理解度は自分の目標に達していますか。理解度が足りないと感じている講義は何ですか。"]
[]
[]
[]
[]
[null,5,"平日（試験勉強以外）１日当たりの勉強時間（平均）はどのくらいですか。勉強時間が足りないと感じている講義は何ですか。"]
[]
[]
[]
[]
[null,6,"アルバイトと勉強は両立できましたか。"]
[]
[]
[]
[]
[null,7,"サークル活動と勉強は両立できましたか。"]
[]
[]
[]
[]
[null,8,"卒業後の進路についてどのように考えていますか。"]
[]
[]
[]
[]
[null,9,"その他、アドバイスが必要なことはありますか。"]
[]
[]
[]
[]
[null,10]
[]
[]
[]
[]
[null,11]
[]
[]
[]
[]
[null,12]

{"sheet":"単位修得状況確認表（共通教育科目，外国人留学生）","index":3,"n_rows":37,"n_cols":49,"rows_kept":37,"cut":false,"hidden":false,"merged":[[29,15,29,16],[29,17,29,18],[29,19,29,20],[29,21,29,22],[29,23,29,24],[29,0,29,6],[29,7,29,8],[29,9,29,10],[29,11,29,12],[29,13,29,14],[3,35,3,38],[28,29,28,30],[28,31,28,32],[28,33,28,34],[28,35,28,36],[28,37,28,38],[29,35,29,36],[29,37,29,38],[29,25,29,26],[29,27,29,28],[29,29,29,30],[29,31,29,32],[29,33,29,34],[1,0,1,41],[2,0,5,6],[2,7,2,38],[2,39,5,39],[2,40,5,40],[2,41,5,41],[4,7,4,8],[4,9,4,10],[4,11,4,12],[4,13,4,14],[4,37,4,38],[4,15,4,16],[4,33,4,34],[3,27,3,30],[3,31,3,34],[3,7,3,10],[3,11,3,14],[3,15,3,18],[3,19,3,22],[3,23,3,26],[17,0,23,0],[17,1,20,3],[18,4,20,4],[21,1,22,3],[14,1,15,3],[4,17,4,18],[4,19,4,20],[4,21,4,22],[4,23,4,24],[21,40,22,40],[4,35,4,36],[6,0,16,0],[6,1,11,3],[9,4,10,4],[12,1,13,3],[4,25,4,26],[4,27,4,28],[4,29,4,30],[4,31,4,32],[24,0,24,6],[25,1,25,10],[26,39,26,40],[27,37,27,38],[27,15,27,16],[27,17,27,18],[27,19,27,20],[27,21,27,22],[27,23,27,24],[27,25,27,26],[27,27,27,28],[27,29,27,30],[27,31,27,32],[27,33,27,34],[27,35,27,36],[27,0,27,6],[27,7,27,8],[27,9,27,10],[27,11,27,12],[27,13,27,14],[28,27,28,28],[28,15,28,16],[28,17,28,18],[28,19,28,20],[28,21,28,22],[28,23,28,24],[28,25,28,26],[28,0,28,6],[28,7,28,8],[28,9,28,10],[28,11,28,12],[28,13,28,14]]}
[null,null,null,null,null,null,null,null,null,null,null,null,null,null,null,null,null,null,null,null,null,null,null,null,null,null,null,null,null,null,null,null,null,null,null,null,null,null,null,null,null,null,null,null,null,null,null,null,"A"]
["単位修得状況確認表（共通教育科目：外国人留学生）",null,null,null,null,null,null,null,null,null,null,null,null,null,null,null,null,null,null,null,null,null,null,null,null,null,null,null,null,null,null,null,null,null,null,null,null,null,null,null,null,null,null,null,null,null,null,null,"B"]
["　",null,null,null,null,null,null,"取得単位数およびGP",null,null,null,null,null,null,null,null,null,null,null,null,null,null,null,null,null,null,null,null,null,null,null,null,null,null,null,null,null,null,null,"取得単位数","要修得\n単位数","累積GP",null,null,"当該期修得単位の入力要領（共通教育科目）",null,null,null,"C"]
[null,null,null,null,null,null,null,"　年次",null,null,null,"　年次",null,null,null,"　年次",null,null,null,"　年次",null,null,null,"　年次",null,null,null,"　年次",null,null,null,"　年次",null,null,null,"　年次",null,null,null,null,null,null,null,null,"１．黄色枠に各科目(英語及び日本語の場合は修得",null,null,null,"D"]
[null,null,null,null,null,null,null,"１期",null,"２期",null,"３期",null,"４期",null,"５期",null,"６期",null,"７期",null,"８期",null,"９期",null,"10期",null,"11期",null,"12期",null,"13期",null,"14期",null,"15期",null,"16期",null,null,null,null,null,null,"　　した合計単位数)の修得単位数を記入する。",null,null,null,"F"]
[null,null,null,null,null,null,null,"単位","合計GP","単位","合計GP","単位","合計GP","単位","合計GP","単位","合計GP","単位","合計GP","単位","合計GP","単位","合計GP","単位","合計GP","単位","合計GP","単位","合計GP","単位","合計GP","単位","合計GP","単位","合計GP","単位","合計GP","単位","合計GP",null,null,null,null,null,"２．オレンジ枠に修得した必修科目・選択必修",null,null,null,"P"]
["必修科目","初年次教育科目",null,null,"初年次セミナーⅠ",null,null,null,null,null,null,null,null,null,null,null,null,null,null,null,null,null,null,null,null,null,null,null,null,null,null,null,null,null,null,null,null,null,null,{"$f":"SUM(H7,J7,L7,N7,P7,R7,T7,V7,X7,Z7,AB7,AD7,AF7,AH7,AJ7,AL7)","v":0},2,null,null,null,"　　科目・全科目それぞれの合計単位数を記入"]
[null,null,null,null,"初年次セミナーⅡ",null,null,null,null,null,null,null,null,null,null,null,null,null,null,null,null,null,null,null,null,null,null,null,null,null,null,null,null,null,null,null,null,null,null,{"$f":"SUM(H8,J8,L8,N8,P8,R8,T8,V8,X8,Z8,AB8,AD8,AF8,AH8,AJ8,AL8)","v":0},"－",null,null,null,"　　する。"]
[null,null,null,null,"大学と地域",null,null,null,null,null,null,null,null,null,null,null,null,null,null,null,null,null,null,null,null,null,null,null,null,null,null,null,null,null,null,null,null,null,null,0,2,null,null,null,"３．灰色枠に受講科目の合計GP（単位数×GP）"]
[null,null,null,null,"体育・健康","理論",null,null,null,null,null,null,null,null,null,null,null,null,null,null,null,null,null,null,null,null,null,null,null,null,null,null,null,null,null,null,null,null,null,0,1,null,null,null,"　　を計算し、その値を入力する。"]
[null,null,null,null,null,"実習",null,null,null,null,null,null,null,null,null,null,null,null,null,null,null,null,null,null,null,null,null,null,null,null,null,null,null,null,null,null,null,null,null,0,1,null,null,null,"　（評価とGPの関係：A=4,B=3,C=2,D=1,F=0,Pは"]
[null,null,null,null,"情報活用",null,null,null,null,null,null,null,null,null,null,null,null,null,null,null,null,null,null,null,null,null,null,null,null,null,null,null,null,null,null,null,null,null,null,0,2,null,null,null,"　　GPの該当外なので合計GP欄は空欄とする。）"]
[null,"ｸﾞﾛｰﾊﾞﾙ教育科目",null,null,"英語",null,null,null,null,null,null,null,null,null,null,null,null,null,null,null,null,null,null,null,null,null,null,null,null,null,null,null,null,null,null,null,null,null,null,0,6,null,null,null,"４．取得単位数を要修得単位数と比較して、"]
[null,null,null,null,"異文化理解",null,null,null,null,null,null,null,null,null,null,null,null,null,null,null,null,null,null,null,null,null,null,null,null,null,null,null,null,null,null,null,null,null,null,0,2,null,null,null,"　　単位取得状況を把握する。"]
[null,"日本語・日本事情科目",null,null,"日本語",null,null,null,null,null,null,null,null,null,null,null,null,null,null,null,null,null,null,null,null,null,null,null,null,null,null,null,null,null,null,null,null,null,null,0,4]
[null,null,null,null,"日本事情",null,null,null,null,null,null,null,null,null,null,null,null,null,null,null,null,null,null,null,null,null,null,null,null,null,null,null,null,null,null,null,null,null,null,0,"(4)",null,null,null,"※期をまたがって開講される科目は、成績の出"]
[null,"必修科目　計",null,null,null,null,null,null,{"$f":"SUM(I7:I16)","v":0},null,{"$f":"SUM(K7:K16)","v":0},null,{"$f":"SUM(M7:M16)","v":0},null,{"$f":"SUM(O7:O16)","v":0},null,{"$f":"SUM(Q7:Q16)","v":0},null,{"$f":"SUM(S7:S16)","v":0},null,{"$f":"SUM(U7:U16)","v":0},null,{"$f":"SUM(W7:W16)","v":0},null,{"$f":"SUM(Y7:Y16)","v":0},null,{"$f":"SUM(AA7:AA16)","v":0},null,{"$f":"SUM(AC7:AC16)","v":0},null,{"$f":"SUM(AE7:AE16)","v":0},null,{"$f":"SUM(AG7:AG16)","v":0},null,{"$f":"SUM(AI7:AI16)","v":0},null,{"$f":"SUM(AK7:AK16)","v":0},null,{"$f":"SUM(AM7:AM16)","v":0},0,20,{"$f":"SUM(I17,K17,M17,O17,Q17,S17,U17,W17,Y17,AA17,AC17,AE17,AG17,AI17,AK17,AM17)","v":0},null,null,"　された期に記入する。例えば通年の場合、後"]
["選択必修科目","教養教育科目",null,null,"人文・社会科学分野","選択科目",null,null,null,null,null,null,null,null,null,null,null,null,null,null,null,null,null,null,null,null,null,null,null,null,null,null,null,null,null,null,null,null,null,0,4,null,null,null,"　期に記入する。"]
[null,null,null,null,"自然科学分野","実験科目",null,null,null,null,null,null,null,null,null,null,null,null,null,null,null,null,null,null,null,null,null,null,null,null,null,null,null,null,null,null,null,null,null,0,2,null,null,null,"※本表最下部の表の入力方法について"]
[null,null,null,null,null,"選択科目",null,null,null,null,null,null,null,null,null,null,null,null,null,null,null,null,null,null,null,null,null,null,null,null,null,null,null,null,null,null,null,null,null,0,2,null,null,null,"　・P評価の単位数は、当該期①の欄に、"]
[null,null,null,null,null,"基礎教育入門科目",null,null,null,null,null,null,null,null,null,null,null,null,null,null,null,null,null,null,null,null,null,null,null,null,null,null,null,null,null,null,null,null,null,0,2,null,null,null,"　・F評価の単位数は、当該期②の欄に、"]
[null,"教養活用科目",null,null,"統合Ⅰ（課題発見）",null,null,null,null,null,null,null,null,null,null,null,null,null,null,null,null,null,null,null,null,null,null,null,null,null,null,null,null,null,null,null,null,null,null,0,4,null,null,null,"　・評価F科目の再履修での修得単位数は当該"]
[null,null,null,null,"統合Ⅱ（課題解決）",null,null,null,null,null,null,null,null,null,null,null,null,null,null,null,null,null,null,null,null,null,null,null,null,null,null,null,null,null,null,null,null,null,null,0,null,null,null,null,"　　期③の欄に入力する。なお、②には再履修"]
[null,"選択必修科目　計",null,null,null,null,null,null,{"$f":"SUM(I18:I23)","v":0},null,{"$f":"SUM(K18:K23)","v":0},null,{"$f":"SUM(M18:M23)","v":0},null,{"$f":"SUM(O18:O23)","v":0},null,{"$f":"SUM(Q18:Q23)","v":0},null,{"$f":"SUM(S18:S23)","v":0},null,{"$f":"SUM(U18:U23)","v":0},null,{"$f":"SUM(W18:W23)","v":0},null,{"$f":"SUM(Y18:Y23)","v":0},null,{"$f":"SUM(AA18:AA23)","v":0},null,{"$f":"SUM(AC18:AC23)","v":0},null,{"$f":"SUM(AE18:AE23)","v":0},null,{"$f":"SUM(AG18:AG23)","v":0},null,{"$f":"SUM(AI18:AI23)","v":0},null,{"$f":"SUM(AK18:AK23)","v":0},null,{"$f":"SUM(AM18:AM23)","v":0},0,14,{"$f":"SUM(I24,K24,M24,O24,Q24,S24,U24,W24,Y24,AA24,AC24,AE24,AG24,AI24,AK24,AM24)","v":0},null,null,"　　の科目は含まない。"]
["全科目合計",null,null,null,null,null,null,{"$f":"H17+H24","v":0},{"$f":"I17+I24","v":0},{"$f":"J17+J24","v":0},0,0,0,0,0,0,0,0,0,0,0,0,0,0,0,0,0,0,0,0,0,0,0,0,0,0,0,0,0,0,34,{"$f":"SUM(I25,K25,M25,O25,Q25,S25,U25,W25,Y25,AA25,AC25,AE25,AG25,AI25,AK25,AM25)","v":0},null,null,"※評価Fの科目を再履修して単位を修得した場合"]
["※","「期を増やす」欄により学年を４年間増やすことが可。",null,null,null,null,null,null,null,null,null,null,null,null,null,null,null,null,null,null,null,null,null,null,null,null,null,null,null,null,null,null,null,null,null,null,null,null,null,null,null,null,null,null,"　の入力方法について"]
[null,null,null,null,null,null,null,null,null,null,null,null,null,null,null,null,null,null,null,null,null,null,null,null,null,null,null,null,null,null,null,null,null,null,null,null,null,null,null,null,null,null,null,null,"　上記1～3の手順で入力する。"]
["①【共通教育科目】評価Pの単位数",null,null,null,null,null,null,null,null,null,null,null,null,null,null,null,null,null,null,null,null,null,null,null,null,null,null,null,null,null,null,null,null,null,null,null,null,null,null,{"$f":"SUM(H28:AM28)","v":0},null,null,null,null,"※評価D以上の科目を再履修して単位を修得した"]
["②【共通教育科目】不合格（評価F）の単位数",null,null,null,null,null,null,null,null,null,null,null,null,null,null,null,null,null,null,null,null,null,null,null,null,null,null,null,null,null,null,null,null,null,null,null,null,null,null,{"$f":"SUM(H29:AM29)","v":0},null,null,null,null,"　場合の入力方法について"]
["③【共通教育科目】評価F科目の再履修での修得単位数",null,null,null,null,null,null,null,null,null,null,null,null,null,null,null,null,null,null,null,null,null,null,null,null,null,null,null,null,null,null,null,null,null,null,null,null,null,null,{"$f":"SUM(H30:AM30)","v":0},null,null,null,null,"　上記1～3の手順で入力した後、以前の評価（"]
[null,null,null,null,null,null,null,null,null,null,null,null,null,null,null,null,null,null,null,null,null,null,null,null,null,null,null,null,null,null,null,null,null,null,null,null,null,null,null,null,null,null,null,null,"  黄色枠）と合計GP（灰色枠）を削除し、オレ"]
[null,null,null,null,null,null,null,null,null,null,null,null,null,null,null,null,null,null,null,null,null,null,null,null,null,null,null,null,null,null,null,null,null,null,null,null,null,null,null,null,null,null,null,null,"　ンジ枠の合計修得単位数から再履修で修得し"]
[null,null,null,null,null,null,null,null,null,null,null,null,null,null,null,null,null,null,null,null,null,null,null,null,null,null,null,null,null,null,null,null,null,null,null,null,null,null,null,null,null,null,null,null,"　た単位数を引いた値を再入力する。"]
[]
[null,null,null,null,null,null,null,null,null,null,null,null,null,null,null,null,null,null,null,null,null,null,null,null,null,null,null,null,null,null,null,null,null,null,null,null,null,null,null,null,null,null,null,null,"（補足説明）"]
[null,null,null,null,null,null,null,null,null,null,null,null,null,null,null,null,null,null,null,null,null,null,null,null,null,null,null,null,null,null,null,null,null,null,null,null,null,null,null,null,null,null,null,null,"※留年した場合は「期を増やす」欄で列を増"]
[null,null,null,null,null,null,null,null,null,null,null,null,null,null,null,null,null,null,null,null,null,null,null,null,null,null,null,null,null,null,null,null,null,null,null,null,null,null,null,null,null,null,null,null,"　やす。"]

{"sheet":"単位修得状況確認表（専門教育科目）","index":4,"n_rows":85,"n_cols":47,"rows_kept":85,"cut":false,"hidden":false,"merged":[[82,0,82,3],[82,16,82,17],[76,0,76,3],[84,32,84,33],[84,34,84,35],[84,0,84,3],[84,22,84,23],[84,24,84,25],[84,26,84,27],[84,28,84,29],[84,30,84,31],[84,12,84,13],[84,14,84,15],[84,16,84,17],[84,18,84,19],[84,20,84,21],[84,4,84,5],[84,6,84,7],[84,8,84,9],[84,10,84,11],[83,18,83,19],[83,0,83,3],[83,4,83,5],[83,6,83,7],[17,46,18,46],[82,6,82,7],[82,8,82,9],[82,10,82,11],[82,12,82,13],[82,14,82,15],[7,42,33,42],[36,42,44,42],[47,42,58,42],[61,42,75,42],[82,32,82,33],[82,34,82,35],[80,1,80,10],[47,1,58,1],[61,1,75,1],[6,1,11,1],[82,18,82,19],[78,0,78,3],[79,0,79,3],[82,4,82,5],[45,0,45,3],[47,0,58,0],[59,0,59,3],[61,0,75,0],[36,1,44,1],[2,0,5,1],[12,0,12,3],[14,1,33,1],[14,0,33,0],[36,0,44,0],[34,0,34,3],[6,0,11,0],[3,4,3,7],[4,6,4,7],[2,4,2,35],[4,34,4,35],[4,28,4,29],[4,30,4,31],[3,32,3,35],[4,20,4,21],[3,24,3,27],[4,24,4,25],[83,8,83,9],[83,10,83,11],[83,12,83,13],[83,14,83,15],[83,16,83,17],[4,26,4,27],[1,0,1,38],[2,36,5,36],[2,38,5,38],[4,22,4,23],[2,37,5,37],[3,20,3,23],[4,32,4,33],[3,28,3,31],[4,12,4,13],[4,14,4,15],[4,16,4,17],[4,4,4,5],[3,8,3,11],[3,12,3,15],[4,8,4,9],[4,10,4,11],[3,16,3,19],[4,18,4,19],[83,30,83,31],[83,32,83,33],[83,34,83,35],[82,30,82,31],[80,36,80,37],[73,41,75,41],[83,20,83,21],[83,22,83,23],[83,24,83,25],[83,26,83,27],[83,28,83,29],[82,20,82,21],[82,22,82,23],[82,24,82,25],[82,26,82,27],[82,28,82,29]]}
[null,null,null,null,null,null,null,null,null,null,null,null,null,null,null,null,null,null,null,null,null,null,null,null,null,null,null,null,null,null,null,null,null,null,null,null,null,null,null,null,null,null,null,"A"]
["単位修得状況確認表（専門教育科目）",null,null,null,null,null,null,null,null,null,null,null,null,null,null,null,null,null,null,null,null,null,null,null,null,null,null,null,null,null,null,null,null,null,null,null,null,null,null,null,null,"受講科目の単位入力要領（専門教育科目）",null,"B"]
["区分",null,"授","単","履修科目の評価およびGP",null,null,null,null,null,null,null,null,null,null,null,null,null,null,null,null,null,null,null,null,null,null,null,null,null,null,null,null,null,null,null,"取得単位数","要修得\n単位数","累積GP",null,null,"STEP１",null,"C"]
[null,null,"業"," ","　年次",null,null,null,"　年次",null,null,null,"　年次",null,null,null,"　年次",null,null,null,"　年次",null,null,null,"　年次",null,null,null,"　年次",null,null,null,"　年次",null,null,null,null,null,null,null,null,"当該期に受講した科目の単位を区分ごとに以下の手順で",null,"D"]
[null,null,"科",null,"１期",null,"２期",null,"３期",null,"４期",null,"５期",null,"６期",null,"７期",null,"８期",null,"９期",null,"10期",null,"11期",null,"12期",null,"13期",null,"14期",null,"15期",null,"16期",null,null,null,null,null,null,"入力し、要修得単位数と比較して単位取得状況を把握",null,"F"]
[null,null,"目","位","評価","合計GP","評価","合計GP","評価","合計GP","評価","合計GP","評価","合計GP","評価","合計GP","評価","合計GP","評価","合計GP","評価","合計GP","評価","合計GP","評価","合計GP","評価","合計GP","評価","合計GP","評価","合計GP","評価","合計GP","評価","合計GP",null,null,null,null,null,"する。",null,"P"]
["基礎教育科目","必\n修\n科\n目","微分積分学A I",2]
[null,null,"線形代数学Ⅰ",2,null,null,null,null,null,null,null,null,null,null,null,null,null,null,null,null,null,null,null,null,null,null,null,null,null,null,null,null,null,null,null,null,null,null,null,null,null,"１．黄色枠に受講科目の評価（A,B,C,D,F,P）を入力する。","必\n修\n科\n目",250152511101,{"$f":"C8","v":"線形代数学Ⅰ"}]
[null,null,"物理学基礎A I",2,null,null,null,null,null,null,null,null,null,null,null,null,null,null,null,null,null,null,null,null,null,null,null,null,null,null,null,null,null,null,null,null,null,null,null,null,null,"２．オレンジ枠に合計修得単位数を入力する。",null,250093000001,"物理学基礎A I"]
[null,null,"微分積分学AⅡ",2,null,null,null,null,null,null,null,null,null,null,null,null,null,null,null,null,null,null,null,null,null,null,null,null,null,null,null,null,null,null,null,null,null,null,null,null,null,"３．灰色枠に受講科目の合計GP（単位数×GP）を計算し、",null,250093000003,"微分積分学AⅡ"]
[null,null,"線形代数学Ⅱ",2,null,null,null,null,null,null,null,null,null,null,null,null,null,null,null,null,null,null,null,null,null,null,null,null,null,null,null,null,null,null,null,null,null,null,null,null,null,"    その値を入力する。",null,250093000020,"線形代数学Ⅱ","「Ⅰ」が異なるためヒットせず","有機化学Ⅰ（化） 250093000020"]
[null,null,"物理学基礎AⅡ",2,null,null,null,null,null,null,null,null,null,null,null,null,null,null,null,null,null,null,null,null,null,null,null,null,null,null,null,null,null,null,null,null,null,null,null,null,null,"　（評価とGPの関係：A=4,B=3,C=2,D=1,F=0,PはGPの該当",null,250093000004,"物理学基礎AⅡ"]
["合計",null,null,null,null,{"$f":"SUM(F7:F12)","v":0},null,{"$f":"SUM(H7:H12)","v":0},null,{"$f":"SUM(J7:J12)","v":0},null,{"$f":"SUM(L7:L12)","v":0},null,{"$f":"SUM(N7:N12)","v":0},null,{"$f":"SUM(P7:P12)","v":0},null,{"$f":"SUM(R7:R12)","v":0},null,{"$f":"SUM(T7:T12)","v":0},null,{"$f":"SUM(V7:V12)","v":0},null,{"$f":"SUM(X7:X12)","v":0},null,{"$f":"SUM(Z7:Z12)","v":0},null,{"$f":"SUM(AB7:AB12)","v":0},null,{"$f":"SUM(AD7:AD12)","v":0},null,{"$f":"SUM(AF7:AF12)","v":0},null,{"$f":"SUM(AH7:AH12)","v":0},null,{"$f":"SUM(AJ7:AJ12)","v":0},{"$f":"SUM(E13,G13,I13,K13,M13,O13,Q13,S13,U13,W13,Y13,AA13,AC13,AE13,AG13,AI13)","v":0},12,{"$f":"SUM(F13,H13,J13,L13,N13,P13,R13,T13,V13,X13,Z13,AB13,AD13,AF13,AH13,AJ13)","v":0},null,null,"　　外なので合計GP欄は空欄とする。）",null,250093000006,0]
[null,null,null,null,null,null,null,null,null,null,null,null,null,null,null,null,null,null,null,null,null,null,null,null,null,null,null,null,null,null,null,null,null,null,null,null,null,null,null,null,null,"４．修得単位数を要修得単位数と比較して単位取得状況"]
["専門科目","必\n修\n科\n目","フレッシュマンセミナー",2,null,null,null,null,null,null,null,null,null,null,null,null,null,null,null,null,null,null,null,null,null,null,null,null,null,null,null,null,null,null,null,null,null,null,null,null,null,"    を把握する。",null,250093000007,{"$f":"C15","v":"フレッシュマンセミナー"},"「Ⅰ」が異なるためヒットせず","応用数学Ⅰ（化） 250093000007"]
[null,null,"基礎化学",2,null,null,null,null,null,null,null,null,null,null,null,null,null,null,null,null,null,null,null,null,null,null,null,null,null,null,null,null,null,null,null,null,null,null,null,null,null,null,null,250093000005,"基礎化学"]
[null,null,"有機化学基礎",2,null,null,null,null,null,null,null,null,null,null,null,null,null,null,null,null,null,null,null,null,null,null,null,null,null,null,null,null,null,null,null,null,null,null,null,null,null,"※期をまたがって開講される科目は、成績の出された期に",null,250093000008,"有機化学基礎"]
[null,null,"物理化学基礎",2,null,null,null,null,null,null,null,null,null,null,null,null,null,null,null,null,null,null,null,null,null,null,null,null,null,null,null,null,null,null,null,null,null,null,null,null,null,"  記入する。例えば通年の場合、後期に記入する。",null,250072400001,"物理化学基礎","2件以上ヒット","化学情報分析実習 250072400001\n化学情報分析実習 250093000009"]
[null,null,"応用数学Ｉ",2,null,null,null,null,null,null,null,null,null,null,null,null,null,null,null,null,null,null,null,null,null,null,null,null,null,null,null,null,null,null,null,null,null,null,null,null,null,"※本表最下部の表の入力方法について",null,250093000010,"応用数学Ｉ"]
[null,null,"物理化学Ⅰ",2,null,null,null,null,null,null,null,null,null,null,null,null,null,null,null,null,null,null,null,null,null,null,null,null,null,null,null,null,null,null,null,null,null,null,null,null,null,"　・P評価の単位数は当該期①の欄に、",null,251330000001,"物理化学Ⅰ"]
[null,null,"化学工学基礎",2,null,null,null,null,null,null,null,null,null,null,null,null,null,null,null,null,null,null,null,null,null,null,null,null,null,null,null,null,null,null,null,null,null,null,null,null,null,"　・F評価の単位数は当該期②の欄に、",null,250093000011,"化学工学基礎"]
[null,null,"有機化学Ｉ",2,null,null,null,null,null,null,null,null,null,null,null,null,null,null,null,null,null,null,null,null,null,null,null,null,null,null,null,null,null,null,null,null,null,null,null,null,null,"　・評価F科目の再履修での修得単位数は当該期③の欄に"]
[null,null,"有機化学Ⅱ",2,null,null,null,null,null,null,null,null,null,null,null,null,null,null,null,null,null,null,null,null,null,null,null,null,null,null,null,null,null,null,null,null,null,null,null,null,null,"　　入力する。なお、②には再履修の科目は含まない。"]
[null,null,"物理化学Ⅱ",2,null,null,null,null,null,null,null,null,null,null,null,null,null,null,null,null,null,null,null,null,null,null,null,null,null,null,null,null,null,null,null,null,null,null,null,null,null,"※評価Fの科目を再履修して単位を修得した場合の入力方"]
[null,null,"化学生命工学実験",3,null,null,null,null,null,null,null,null,null,null,null,null,null,null,null,null,null,null,null,null,null,null,null,null,null,null,null,null,null,null,null,null,null,null,null,null,null,"  法について"]
[null,null,"工学英語Ⅰ",2,null,null,null,null,null,null,null,null,null,null,null,null,null,null,null,null,null,null,null,null,null,null,null,null,null,null,null,null,null,null,null,null,null,null,null,null,null,"  上記１～３の手順で入力する。"]
[null,null,"化学情報分析実習",3,null,null,null,null,null,null,null,null,null,null,null,null,null,null,null,null,null,null,null,null,null,null,null,null,null,null,null,null,null,null,null,null,null,null,null,null,null,"※評価D以上の科目を再履修して単位を修得した場合の入"]
[null,null,"化学生命工学セミナーⅠ",2,null,null,null,null,null,null,null,null,null,null,null,null,null,null,null,null,null,null,null,null,null,null,null,null,null,null,null,null,null,null,null,null,null,null,null,null,null,"  力方法について"]
[null,null,"工学英語Ⅱ",2,null,null,null,null,null,null,null,null,null,null,null,null,null,null,null,null,null,null,null,null,null,null,null,null,null,null,null,null,null,null,null,null,null,null,null,null,null,"  上記1～3の手順で入力した後、以前の評価（黄色枠）と"]
[null,null,"化学生命工学セミナーⅡ",2,null,null,null,null,null,null,null,null,null,null,null,null,null,null,null,null,null,null,null,null,null,null,null,null,null,null,null,null,null,null,null,null,null,null,null,null,null,"  合計GP（灰色枠）を削除し、オレンジ枠の合計修得単位"]
[null,null,"化学生命工学特別研究Ⅰ",2,null,null,null,null,null,null,null,null,null,null,null,null,null,null,null,null,null,null,null,null,null,null,null,null,null,null,null,null,null,null,null,null,null,null,null,null,null,"  数から再履修で修得した単位数を引いた値を再入力する。"]
[null,null,"工学倫理",2,null,null,null,null,null,null,null,null,null,null,null,null,null,null,null,null,null,null,null,null,null,null,null,null,null,null,null,null,null,null,null,null,null,null,null,null,null,"　"]
[null,null,"化学生命工学特別研究Ⅱ",2,null,null,null,null,null,null,null,null,null,null,null,null,null,null,null,null,null,null,null,null,null,null,null,null,null,null,null,null,null,null,null,null,null,null,null,null,null,"STEP２"]
[null,null,"卒　　　業　　　論　　　文注２",6,null,null,null,null,null,null,null,null,null,null,null,null,null,null,null,null,null,null,null,null,null,null,null,null,null,null,null,null,null,null,null,null,null,null,null,null,null,"累積GPAの値を成績原簿と一致するかチェックする。"]
["合計",null,null,null,null,{"$f":"SUM(F15:F34)","v":0},null,{"$f":"SUM(H15:H34)","v":0},null,{"$f":"SUM(J15:J34)","v":0},null,{"$f":"SUM(L15:L34)","v":0},null,{"$f":"SUM(N15:N34)","v":0},null,{"$f":"SUM(P15:P34)","v":0},null,{"$f":"SUM(R15:R34)","v":0},null,{"$f":"SUM(T15:T34)","v":0},null,{"$f":"SUM(V15:V34)","v":0},null,{"$f":"SUM(X15:X34)","v":0},null,{"$f":"SUM(Z15:Z34)","v":0},null,{"$f":"SUM(AB15:AB34)","v":0},null,{"$f":"SUM(AD15:AD34)","v":0},null,{"$f":"SUM(AF15:AF34)","v":0},null,{"$f":"SUM(AH15:AH34)","v":0},null,{"$f":"SUM(AJ15:AJ34)","v":0},{"$f":"SUM(E35,G35,I35,K35,M35,O35,Q35,S35,U35,W35,Y35,AA35,AC35,AE35,AG35,AI35)","v":0},46,{"$f":"SUM(F35,H35,J35,L35,N35,P35,R35,T35,V35,X35,Z35,AB35,AD35,AF35,AH35,AJ35)","v":0},null,null,"区分ごとの単位修得状況の入力が終了した後に、シート"]
[null,null,null,null,null,null,null,null,null,null,null,null,null,null,null,null,null,null,null,null,null,null,null,null,null,null,null,null,null,null,null,null,null,null,null,null,null,null,null,null,null,"右下赤枠の「累積GPA」の値が、成績原簿に記載されて"]
["専門科目","選\n択\n科\n目\nＡ\n群\n","情報システム",2,null,null,null,null,null,null,null,null,null,null,null,null,null,null,null,null,null,null,null,null,null,null,null,null,null,null,null,null,null,null,null,null,null,null,null,null,null,"いる累積GPAの値と一致しているかチェックし、一致","選\n択\n科\n目\nＡ\n群\n",250093000015,{"$f":"C37","v":"情報システム"}]
[null,null,"地球科学基礎",2,null,null,null,null,null,null,null,null,null,null,null,null,null,null,null,null,null,null,null,null,null,null,null,null,null,null,null,null,null,null,null,null,null,null,null,null,null,"していない場合はSTEP１に戻り、入力値に間違いが",null,250299110001,"地球科学基礎"]
[null,null,"原子力・放射線と環境",2,null,null,null,null,null,null,null,null,null,null,null,null,null,null,null,null,null,null,null,null,null,null,null,null,null,null,null,null,null,null,null,null,null,null,null,null,null,"ないか見直し、正しく入力する。",null,250042099101,"原子力・放射線と環境"]
[null,null,"生産工学論",2,null,null,null,null,null,null,null,null,null,null,null,null,null,null,null,null,null,null,null,null,null,null,null,null,null,null,null,null,null,null,null,null,null,null,null,null,null,null,null,250299200001,"生産工学論"]
[null,null,"エレクトロニクス論",2,null,null,null,null,null,null,null,null,null,null,null,null,null,null,null,null,null,null,null,null,null,null,null,null,null,null,null,null,null,null,null,null,null,null,null,null,null,"（補足説明）",null,250228100002,"エレクトロニクス論"]
[null,null,"科学技術論",2,null,null,null,null,null,null,null,null,null,null,null,null,null,null,null,null,null,null,null,null,null,null,null,null,null,null,null,null,null,null,null,null,null,null,null,null,null,"※留年した場合は「期を増やす」欄で列を増やす。",null,250228100006,"科学技術論"]
[null,null,"環境工学論",2,null,null,null,null,null,null,null,null,null,null,null,null,null,null,null,null,null,null,null,null,null,null,null,null,null,null,null,null,null,null,null,null,null,null,null,null,null,"※評価Pの科目については、GPおよびGPAの計算に含ま",null,250228100004,"環境工学論"]
[null,null,"材料科学論",2,null,null,null,null,null,null,null,null,null,null,null,null,null,null,null,null,null,null,null,null,null,null,null,null,null,null,null,null,null,null,null,null,null,null,null,null,null,"　ない。しかしながら、進級・卒業要件の累積単位数",null,250228100005,"材料科学論"]
[null,null,"エネルギー工学論",2,null,null,null,null,null,null,null,null,null,null,null,null,null,null,null,null,null,null,null,null,null,null,null,null,null,null,null,null,null,null,null,null,null,null,null,null,null,"　には含まれることがあるので、標準履修課程表で確認",null,250228100003,"エネルギー工学論"]
["合計",null,null,null,null,{"$f":"SUM(F37:F45)","v":0},null,{"$f":"SUM(H37:H45)","v":0},null,{"$f":"SUM(J37:J45)","v":0},null,{"$f":"SUM(L37:L45)","v":0},null,{"$f":"SUM(N37:N45)","v":0},null,{"$f":"SUM(P37:P45)","v":0},null,{"$f":"SUM(R37:R45)","v":0},null,{"$f":"SUM(T37:T45)","v":0},null,{"$f":"SUM(V37:V45)","v":0},null,{"$f":"SUM(X37:X45)","v":0},null,{"$f":"SUM(Z37:Z45)","v":0},null,{"$f":"SUM(AB37:AB45)","v":0},null,{"$f":"SUM(AD37:AD45)","v":0},null,{"$f":"SUM(AF37:AF45)","v":0},null,{"$f":"SUM(AH37:AH45)","v":0},null,{"$f":"SUM(AJ37:AJ45)","v":0},{"$f":"SUM(E46,G46,I46,K46,M46,O46,Q46,S46,U46,W46,Y46,AA46,AC46,AE46,AG46,AI46)","v":0},6,{"$f":"SUM(F46,H46,J46,L46,N46,P46,R46,T46,V46,X46,Z46,AB46,AD46,AF46,AH46,AJ46)","v":0},null,null,"　すること。（インターンシップ等）"]
[null,null,null,null,null,null,null,null,null,null,null,null,null,null,null,null,null,null,null,null,null,null,null,null,null,null,null,null,null,null,null,null,null,null,null,null,null,null,null,null,null,"※随意科目については、GPおよびGPAの計算に含まれない。"]
["専門科目","選\n択\n科\n目\nB\n群","生物学概論",2,null,null,null,null,null,null,null,null,null,null,null,null,null,null,null,null,null,null,null,null,null,null,null,null,null,null,null,null,null,null,null,null,null,null,null,null,null,"　また、進級・卒業要件にも含まれない。","選\n択\n科\n目\nＢ\n群",251330000003,{"$f":"C48","v":"生物学概論"}]
[null,null,"量子化学",2,null,null,null,null,null,null,null,null,null,null,null,null,null,null,null,null,null,null,null,null,null,null,null,null,null,null,null,null,null,null,null,null,null,null,null,null,null,null,null,250227000002,{"$f":"C49","v":"量子化学"}]
[null,null,"生物化学Ⅰ",2,null,null,null,null,null,null,null,null,null,null,null,null,null,null,null,null,null,null,null,null,null,null,null,null,null,null,null,null,null,null,null,null,null,null,null,null,null,null,null,250093000026,{"$f":"C50","v":"生物化学Ⅰ"}]
[null,null,"高分子化学",2]
[null,null,"化学生命工学英語",2]
[null,null,"生体分子化学",2]
[null,null,"無機化学",2]
[null,null,"生物化学Ⅱ",2,null,null,null,null,null,null,null,null,null,null,null,null,null,null,null,null,null,null,null,null,null,null,null,null,null,null,null,null,null,null,null,null,null,null,null,null,null,null,null,250093000021,{"$f":"C55","v":"生物化学Ⅱ"}]
[null,null,"化学計測Ⅰ",2,null,null,null,null,null,null,null,null,null,null,null,null,null,null,null,null,null,null,null,null,null,null,null,null,null,null,null,null,null,null,null,null,null,null,null,null,null,null,null,250093000022,"化学計測Ⅰ"]
[null,null,"化学生命プログラミング",2,null,null,null,null,null,null,null,null,null,null,null,null,null,null,null,null,null,null,null,null,null,null,null,null,null,null,null,null,null,null,null,null,null,null,null,null,null,null,null,250093000024,"化学生命プログラミング"]
[null,null,"有機化学Ⅲ",2,null,null,null,null,null,null,null,null,null,null,null,null,null,null,null,null,null,null,null,null,null,null,null,null,null,null,null,null,null,null,null,null,null,null,null,null,null,null,null,250093000027,"有機化学Ⅲ"]
[null,null,"分析化学",2,null,null,null,null,null,null,null,null,null,null,null,null,null,null,null,null,null,null,null,null,null,null,null,null,null,null,null,null,null,null,null,null,null,null,null,null,null,null,null,250093000028,"分析化学"]
["合計",null,null,null,null,{"$f":"SUM(F48:F59)","v":0},null,{"$f":"SUM(H48:H59)","v":0},null,{"$f":"SUM(J48:J59)","v":0},null,{"$f":"SUM(L48:L59)","v":0},null,{"$f":"SUM(N48:N59)","v":0},null,{"$f":"SUM(P48:P59)","v":0},null,{"$f":"SUM(R48:R59)","v":0},null,{"$f":"SUM(T48:T59)","v":0},null,{"$f":"SUM(V48:V59)","v":0},null,{"$f":"SUM(X48:X59)","v":0},null,{"$f":"SUM(Z48:Z59)","v":0},null,{"$f":"SUM(AB48:AB59)","v":0},null,{"$f":"SUM(AD48:AD59)","v":0},null,{"$f":"SUM(AF48:AF59)","v":0},null,{"$f":"SUM(AH48:AH59)","v":0},null,{"$f":"SUM(AJ48:AJ59)","v":0},{"$f":"SUM(E60,G60,I60,K60,M60,O60,Q60,S60,U60,W60,Y60,AA60,AC60,AE60,AG60,AI60)","v":0},16,{"$f":"SUM(F60,H60,J60,L60,N60,P60,R60,T60,V60,X60,Z60,AB60,AD60,AF60,AH60,AJ60)","v":0}]
[]
["専門科目","選\n択\n科\n目\nＣ\n群","化学生命工学キャリアデザイン",2,null,null,null,null,null,null,null,null,null,null,null,null,null,null,null,null,null,null,null,null,null,null,null,null,null,null,null,null,null,null,null,null,null,null,null,null,null,null,"選\n択\n科\n目\nＣ\n群",250093000031,{"$f":"C62","v":"化学生命工学キャリアデザイン"}]
[null,null,"有機工業化学",2,null,null,null,null,null,null,null,null,null,null,null,null,null,null,null,null,null,null,null,null,null,null,null,null,null,null,null,null,null,null,null,null,null,null,null,null,null,null,null,250227011002,{"$f":"C63","v":"有機工業化学"}]
[null,null,"界面科学",2,null,null,null,null,null,null,null,null,null,null,null,null,null,null,null,null,null,null,null,null,null,null,null,null,null,null,null,null,null,null,null,null,null,null,null,null,null,null,null,259752424101,{"$f":"C64","v":"界面科学"}]
[null,null,"量子物理化学",2]
[null,null,"生体分子計測学",2]
[null,null,"分子生物学",2]
[null,null,"化学計測Ⅱ",2]
[null,null,"医工学概論",2]
[null,null,"反応速度論",2]
[null,null,"機能材料化学",2]
[null,null,"環境化学工学",2,null,null,null,null,null,null,null,null,null,null,null,null,null,null,null,null,null,null,null,null,null,null,null,null,null,null,null,null,null,null,null,null,null,null,null,null,null,null,null,250093000025,{"$f":"C72","v":"環境化学工学"}]
[null,null,"移動現象基礎",2,null,null,null,null,null,null,null,null,null,null,null,null,null,null,null,null,null,null,null,null,null,null,null,null,null,null,null,null,null,null,null,null,null,null,null,null,null,null,null,250227000130,{"$f":"C73","v":"移動現象基礎"}]
[null,null,"微生物学",2,null,null,null,null,null,null,null,null,null,null,null,null,null,null,null,null,null,null,null,null,null,null,null,null,null,null,null,null,null,null,null,null,null,null,null,null,null,null,null,250093000039,{"$f":"C74","v":"微生物学"}]
[null,null,"化学生命工学研究基礎 注３",2,null,null,null,null,null,null,null,null,null,null,null,null,null,null,null,null,null,null,null,null,null,null,null,null,null,null,null,null,null,null,null,null,null,null,null,null,null,null,null,250224000120,{"$f":"C75","v":"化学生命工学研究基礎 注３"}]
[null,null,"学外実習",1,null,null,null,null,null,null,null,null,null,null,null,null,null,null,null,null,null,null,null,null,null,null,null,null,null,null,null,null,null,null,null,null,null,null,null,null,null,null,null,250224011001,{"$f":"C76","v":"学外実習"}]
["合計",null,null,null,null,{"$f":"SUM(F62:F76)","v":0},null,{"$f":"SUM(H62:H76)","v":0},null,{"$f":"SUM(J62:J76)","v":0},null,{"$f":"SUM(L62:L76)","v":0},null,{"$f":"SUM(N62:N76)","v":0},null,{"$f":"SUM(P62:P76)","v":0},null,{"$f":"SUM(R62:R76)","v":0},null,{"$f":"SUM(T62:T76)","v":0},null,{"$f":"SUM(V62:V76)","v":0},null,{"$f":"SUM(X62:X76)","v":0},null,{"$f":"SUM(Z62:Z76)","v":0},null,{"$f":"SUM(AB62:AB76)","v":0},null,{"$f":"SUM(AD62:AD76)","v":0},null,{"$f":"SUM(AF62:AF76)","v":0},null,{"$f":"SUM(AH62:AH76)","v":0},null,{"$f":"SUM(AJ62:AJ76)","v":0},{"$f":"SUM(E77,G77,I77,K77,M77,O77,Q77,S77,U77,W77,Y77,AA77,AC77,AE77,AG77,AI77)","v":0},12,{"$f":"SUM(F77,H77,J77,L77,N77,P77,R77,T77,V77,X77,Z77,AB77,AD77,AF77,AH77,AJ77)","v":0}]
[]
["専門教育科目合計（単位数とGP）",null,null,null,{"$f":"SUM(E13,E35,E46,E60,E77)","v":0},0,0,0,0,0,0,0,0,0,0,0,0,0,0,0,0,0,0,0,0,0,0,0,0,0,0,0,0,0,0,0,{"$f":"SUM(E79,G79,I79,K79,M79,O79,Q79,S79,U79,W79,Y79,AA79,AC79,AE79,AG79,AI79)","v":0},92,{"$f":"SUM(F79,H79,J79,L79,N79,P79,R79,T79,V79,X79,Z79,AB79,AD79,AF79,AH79,AJ79)","v":0}]
["(共通＋専門)教育科目合計（単位数とGP）",null,null,null,{"$f":"'単位修得状況確認表（共通教育科目，外国人留学生）'!H25+E79","v":0},{"$f":"'単位修得状況確認表（共通教育科目，外国人留学生）'!I25+F79","v":0},{"$f":"'単位修得状況確認表（共通教育科目，外国人留学生）'!J25+G79","v":0},{"$f":"'単位修得状況確認表（共通教育科目，外国人留学生）'!K25+H79","v":0},{"$f":"'単位修得状況確認表（共通教育科目，外国人留学生）'!L25+I79","v":0},{"$f":"'単位修得状況確認表（共通教育科目，外国人留学生）'!M25+J79","v":0},{"$f":"'単位修得状況確認表（共通教育科目，外国人留学生）'!N25+K79","v":0},{"$f":"'単位修得状況確認表（共通教育科目，外国人留学生）'!O25+L79","v":0},{"$f":"'単位修得状況確認表（共通教育科目，外国人留学生）'!P25+M79","v":0},{"$f":"'単位修得状況確認表（共通教育科目，外国人留学生）'!Q25+N79","v":0},{"$f":"'単位修得状況確認表（共通教育科目，外国人留学生）'!R25+O79","v":0},{"$f":"'単位修得状況確認表（共通教育科目，外国人留学生）'!S25+P79","v":0},{"$f":"'単位修得状況確認表（共通教育科目，外国人留学生）'!T25+Q79","v":0},{"$f":"'単位修得状況確認表（共通教育科目，外国人留学生）'!U25+R79","v":0},{"$f":"'単位修得状況確認表（共通教育科目，外国人留学生）'!V25+S79","v":0},{"$f":"'単位修得状況確認表（共通教育科目，外国人留学生）'!W25+T79","v":0},{"$f":"'単位修得状況確認表（共通教育科目，外国人留学生）'!X25+U79","v":0},{"$f":"'単位修得状況確認表（共通教育科目，外国人留学生）'!Y25+V79","v":0},{"$f":"'単位修得状況確認表（共通教育科目，外国人留学生）'!Z25+W79","v":0},{"$f":"'単位修得状況確認表（共通教育科目，外国人留学生）'!AA25+X79","v":0},{"$f":"'単位修得状況確認表（共通教育科目，外国人留学生）'!AB25+Y79","v":0},{"$f":"'単位修得状況確認表（共通教育科目，外国人留学生）'!AC25+Z79","v":0},{"$f":"'単位修得状況確認表（共通教育科目，外国人留学生）'!AD25+AA79","v":0},{"$f":"'単位修得状況確認表（共通教育科目，外国人留学生）'!AE25+AB79","v":0},{"$f":"'単位修得状況確認表（共通教育科目，外国人留学生）'!AF25+AC79","v":0},{"$f":"'単位修得状況確認表（共通教育科目，外国人留学生）'!AG25+AD79","v":0},{"$f":"'単位修得状況確認表（共通教育科目，外国人留学生）'!AH25+AE79","v":0},{"$f":"'単位修得状況確認表（共通教育科目，外国人留学生）'!AI25+AF79","v":0},{"$f":"'単位修得状況確認表（共通教育科目，外国人留学生）'!AJ25+AG79","v":0},{"$f":"'単位修得状況確認表（共通教育科目，外国人留学生）'!AK25+AH79","v":0},{"$f":"'単位修得状況確認表（共通教育科目，外国人留学生）'!AL25+AI79","v":0},{"$f":"'単位修得状況確認表（共通教育科目，外国人留学生）'!AM25+AJ79","v":0},{"$f":"SUM(E80,G80,I80,K80,M80,O80,Q80,S80,U80,W80,Y80,AA80,AC80,AE80,AG80,AI80)","v":0},124,{"$f":"SUM(F80,H80,J80,L80,N80,P80,R80,T80,V80,X80,Z80,AB80,AD80,AF80,AH80,AJ80)","v":0}]
["※","「期を増やす」欄により学年を４年間増やすことが可。",null,null,null,null,null,null,null,null,null,null,null,null,null,null,null,null,null,null,null,null,null,null,null,null,null,null,null,null,null,null,null,null,null,null,"累積GPA",null,{"$f":"IF(AK80-AK83>0,AM80/(AK80-AK83-'単位修得状況確認表（共通教育科目，外国人留学生）'!AN28+AK84+'単位修得状況確認表（共通教育科目，外国人留学生）'!AN29-AK85-'単位修得状況確認表（共通教育科目，外国人留学生）'!AN30),\"\")","v":""}]
[]
["①【専門教育科目】評価Pの単位数",null,null,null,null,null,null,null,null,null,null,null,null,null,null,null,null,null,null,null,null,null,null,null,null,null,null,null,null,null,null,null,null,null,null,null,{"$f":"SUM(E83:AJ83)","v":0}]
["②【専門教育科目】不合格（評価F）の単位数",null,null,null,null,null,null,null,null,null,null,null,null,null,null,null,null,null,null,null,null,null,null,null,null,null,null,null,null,null,null,null,null,null,null,null,{"$f":"SUM(E84:AJ84)","v":0}]
["③【専門教育科目】評価F科目の再履修での修得単位数",null,null,null,null,null,null,null,null,null,null,null,null,null,null,null,null,null,null,null,null,null,null,null,null,null,null,null,null,null,null,null,null,null,null,null,{"$f":"SUM(E85:AJ85)","v":0}]

{"sheet":"累積グラフ","index":5,"n_rows":206,"n_cols":8,"rows_kept":206,"cut":false,"hidden":false,"merged":[[65,2,65,3],[3,6,3,7],[3,2,3,3],[3,4,3,5],[34,2,34,3],[34,4,34,5]]}
[]
[null,"共通教育科目（必修科目）"]
[]
[null,null,"初年次教育科目",null,"ｸﾞﾛｰﾊﾞﾙ教育科目",null,"日本語・日本事情科目"]
[null,null,"取得単位数","累積取得単位数","取得単位数","累積取得単位数","取得単位数","累積取得単位数"]
[null,"1年前期終了時",{"$f":"SUM('単位修得状況確認表（共通教育科目，外国人留学生）'!H7:H12)","v":0},{"$f":"SUM(C$6:C6)","v":0},{"$f":"SUM('単位修得状況確認表（共通教育科目，外国人留学生）'!H13:H14)","v":0},{"$f":"SUM(E$6:E6)","v":0},{"$f":"SUM('単位修得状況確認表（共通教育科目，外国人留学生）'!H15:H16)","v":0},{"$f":"SUM(G$6:G6)","v":0}]
[null,"1年後期終了時",{"$f":"SUM('単位修得状況確認表（共通教育科目，外国人留学生）'!J7:J12)","v":0},{"$f":"SUM(C$6:C7)","v":0},{"$f":"SUM('単位修得状況確認表（共通教育科目，外国人留学生）'!J13:J14)","v":0},{"$f":"SUM(E$6:E7)","v":0},{"$f":"SUM('単位修得状況確認表（共通教育科目，外国人留学生）'!J15:J16)","v":0},{"$f":"SUM(G$6:G7)","v":0}]
[null,"2年前期終了時",{"$f":"SUM('単位修得状況確認表（共通教育科目，外国人留学生）'!L7:L12)","v":0},{"$f":"SUM(C$6:C8)","v":0},{"$f":"SUM('単位修得状況確認表（共通教育科目，外国人留学生）'!L13:L14)","v":0},{"$f":"SUM(E$6:E8)","v":0},{"$f":"SUM('単位修得状況確認表（共通教育科目，外国人留学生）'!L15:L16)","v":0},{"$f":"SUM(G$6:G8)","v":0}]
[null,"2年後期終了時",{"$f":"SUM('単位修得状況確認表（共通教育科目，外国人留学生）'!N7:N12)","v":0},{"$f":"SUM(C$6:C9)","v":0},{"$f":"SUM('単位修得状況確認表（共通教育科目，外国人留学生）'!N13:N14)","v":0},{"$f":"SUM(E$6:E9)","v":0},{"$f":"SUM('単位修得状況確認表（共通教育科目，外国人留学生）'!N15:N16)","v":0},{"$f":"SUM(G$6:G9)","v":0}]
[null,"3年前期終了時",{"$f":"SUM('単位修得状況確認表（共通教育科目，外国人留学生）'!P7:P12)","v":0},{"$f":"SUM(C$6:C10)","v":0},{"$f":"SUM('単位修得状況確認表（共通教育科目，外国人留学生）'!P13:P14)","v":0},{"$f":"SUM(E$6:E10)","v":0},{"$f":"SUM('単位修得状況確認表（共通教育科目，外国人留学生）'!P15:P16)","v":0},{"$f":"SUM(G$6:G10)","v":0}]
[null,"3年後期終了時",{"$f":"SUM('単位修得状況確認表（共通教育科目，外国人留学生）'!R7:R12)","v":0},{"$f":"SUM(C$6:C11)","v":0},{"$f":"SUM('単位修得状況確認表（共通教育科目，外国人留学生）'!R13:R14)","v":0},{"$f":"SUM(E$6:E11)","v":0},{"$f":"SUM('単位修得状況確認表（共通教育科目，外国人留学生）'!R15:R16)","v":0},{"$f":"SUM(G$6:G11)","v":0}]
[null,"4年前期終了時",{"$f":"SUM('単位修得状況確認表（共通教育科目，外国人留学生）'!T7:T12)","v":0},{"$f":"SUM(C$6:C12)","v":0},{"$f":"SUM('単位修得状況確認表（共通教育科目，外国人留学生）'!T13:T14)","v":0},{"$f":"SUM(E$6:E12)","v":0},{"$f":"SUM('単位修得状況確認表（共通教育科目，外国人留学生）'!T15:T16)","v":0},{"$f":"SUM(G$6:G12)","v":0}]
[null,"4年後期終了時",{"$f":"SUM('単位修得状況確認表（共通教育科目，外国人留学生）'!V7:V12)","v":0},{"$f":"SUM(C$6:C13)","v":0},{"$f":"SUM('単位修得状況確認表（共通教育科目，外国人留学生）'!V13:V14)","v":0},{"$f":"SUM(E$6:E13)","v":0},{"$f":"SUM('単位修得状況確認表（共通教育科目，外国人留学生）'!V15:V16)","v":0},{"$f":"SUM(G$6:G13)","v":0}]
[]
[]
[]
[]
[]
[]
[]
[]
[]
[]
[]
[]
[]
[]
[]
[]
[]
[]
[]
[null,"共通教育科目（選択必修科目）"]
[]
[null,null,"教養教育科目",null,"教養活用科目"]
[null,null,"取得単位数","累積取得単位数","取得単位数","累積取得単位数"]
[null,"1年前期終了時",{"$f":"SUM('単位修得状況確認表（共通教育科目，外国人留学生）'!H18:H21)","v":0},{"$f":"SUM(C$37:C37)","v":0},{"$f":"SUM('単位修得状況確認表（共通教育科目，外国人留学生）'!H22:H23)","v":0},{"$f":"SUM(E$37:E37)","v":0}]
[null,"1年後期終了時",{"$f":"SUM('単位修得状況確認表（共通教育科目，外国人留学生）'!J18:J21)","v":0},{"$f":"SUM(C$37:C38)","v":0},{"$f":"SUM('単位修得状況確認表（共通教育科目，外国人留学生）'!J22:J23)","v":0},{"$f":"SUM(E$37:E38)","v":0}]
[null,"2年前期終了時",{"$f":"SUM('単位修得状況確認表（共通教育科目，外国人留学生）'!L18:L21)","v":0},{"$f":"SUM(C$37:C39)","v":0},{"$f":"SUM('単位修得状況確認表（共通教育科目，外国人留学生）'!L22:L23)","v":0},{"$f":"SUM(E$37:E39)","v":0}]
[null,"2年後期終了時",{"$f":"SUM('単位修得状況確認表（共通教育科目，外国人留学生）'!N18:N21)","v":0},{"$f":"SUM(C$37:C40)","v":0},{"$f":"SUM('単位修得状況確認表（共通教育科目，外国人留学生）'!N22:N23)","v":0},{"$f":"SUM(E$37:E40)","v":0}]
[null,"3年前期終了時",{"$f":"SUM('単位修得状況確認表（共通教育科目，外国人留学生）'!P18:P21)","v":0},{"$f":"SUM(C$37:C41)","v":0},{"$f":"SUM('単位修得状況確認表（共通教育科目，外国人留学生）'!P22:P23)","v":0},{"$f":"SUM(E$37:E41)","v":0}]
[null,"3年後期終了時",{"$f":"SUM('単位修得状況確認表（共通教育科目，外国人留学生）'!R18:R21)","v":0},{"$f":"SUM(C$37:C42)","v":0},{"$f":"SUM('単位修得状況確認表（共通教育科目，外国人留学生）'!R22:R23)","v":0},{"$f":"SUM(E$37:E42)","v":0}]
[null,"4年前期終了時",{"$f":"SUM('単位修得状況確認表（共通教育科目，外国人留学生）'!T18:T21)","v":0},{"$f":"SUM(C$37:C43)","v":0},{"$f":"SUM('単位修得状況確認表（共通教育科目，外国人留学生）'!T22:T23)","v":0},{"$f":"SUM(E$37:E43)","v":0}]
[null,"4年後期終了時",{"$f":"SUM('単位修得状況確認表（共通教育科目，外国人留学生）'!V18:V21)","v":0},{"$f":"SUM(C$37:C44)","v":0},{"$f":"SUM('単位修得状況確認表（共通教育科目，外国人留学生）'!V22:V23)","v":0},{"$f":"SUM(E$37:E44)","v":0}]
[]
[]
[]
[]
[]
[]
[]
[]
[]
[]
[]
[]
[]
[]
[]
[]
[]
[]
[]
[null,"専門教育科目（基礎教育科目）"]
[]
[null,null,"必修科目"]
[null,null,"取得単位数","累積取得単位数"]
[null,"1年前期終了時",{"$f":"'単位修得状況確認表（専門教育科目）'!E13","v":0},{"$f":"SUM(C$68:C68)","v":0}]
[null,"1年後期終了時",{"$f":"'単位修得状況確認表（専門教育科目）'!G13","v":0},{"$f":"SUM(C$68:C69)","v":0}]
[null,"2年前期終了時",{"$f":"'単位修得状況確認表（専門教育科目）'!I13","v":0},{"$f":"SUM(C$68:C70)","v":0}]
[null,"2年後期終了時",{"$f":"'単位修得状況確認表（専門教育科目）'!K13","v":0},{"$f":"SUM(C$68:C71)","v":0}]
[null,"3年前期終了時",{"$f":"'単位修得状況確認表（専門教育科目）'!M13","v":0},{"$f":"SUM(C$68:C72)","v":0}]
[null,"3年後期終了時",{"$f":"'単位修得状況確認表（専門教育科目）'!O13","v":0},{"$f":"SUM(C$68:C73)","v":0}]
[null,"4年前期終了時",{"$f":"'単位修得状況確認表（専門教育科目）'!Q13","v":0},{"$f":"SUM(C$68:C74)","v":0}]
[null,"4年後期終了時",{"$f":"'単位修得状況確認表（専門教育科目）'!S13","v":0},{"$f":"SUM(C$68:C75)","v":0}]
[]
[]
[]
[]
[]
[]
[]
[null,"専門教育科目（必修科目）"]
[]
[null,null,"取得単位数","累積取得単位数"]
[null,"1年前期終了時",{"$f":"'単位修得状況確認表（専門教育科目）'!E35","v":0},{"$f":"SUM(C$86:C86)","v":0}]
[null,"1年後期終了時",{"$f":"'単位修得状況確認表（専門教育科目）'!G35","v":0},{"$f":"SUM(C$86:C87)","v":0}]
[null,"2年前期終了時",{"$f":"'単位修得状況確認表（専門教育科目）'!I35","v":0},{"$f":"SUM(C$86:C88)","v":0}]
[null,"2年後期終了時",{"$f":"'単位修得状況確認表（専門教育科目）'!K35","v":0},{"$f":"SUM(C$86:C89)","v":0}]
[null,"3年前期終了時",{"$f":"'単位修得状況確認表（専門教育科目）'!M35","v":0},{"$f":"SUM(C$86:C90)","v":0}]
[null,"3年後期終了時",{"$f":"'単位修得状況確認表（専門教育科目）'!O35","v":0},{"$f":"SUM(C$86:C91)","v":0}]
[null,"4年前期終了時",{"$f":"'単位修得状況確認表（専門教育科目）'!Q35","v":0},{"$f":"SUM(C$86:C92)","v":0}]
[null,"4年後期終了時",{"$f":"'単位修得状況確認表（専門教育科目）'!S35","v":0},{"$f":"SUM(C$86:C93)","v":0}]
[]
[]
[]
[]
[]
[]
[]
[]
[]
[]
[]
[]
[]
[null,"専門教育科目（選択科目A群）"]
[]
[null,null,"取得単位数","累積取得単位数"]
[null,"1年前期終了時",{"$f":"'単位修得状況確認表（専門教育科目）'!E46","v":0},{"$f":"SUM(C$110:C110)","v":0}]
[null,"1年後期終了時",{"$f":"'単位修得状況確認表（専門教育科目）'!G46","v":0},{"$f":"SUM(C$110:C111)","v":0}]
[null,"2年前期終了時",{"$f":"'単位修得状況確認表（専門教育科目）'!I46","v":0},{"$f":"SUM(C$110:C112)","v":0}]
[null,"2年後期終了時",{"$f":"'単位修得状況確認表（専門教育科目）'!K46","v":0},{"$f":"SUM(C$110:C113)","v":0}]
[null,"3年前期終了時",{"$f":"'単位修得状況確認表（専門教育科目）'!M46","v":0},{"$f":"SUM(C$110:C114)","v":0}]
[null,"3年後期終了時",{"$f":"'単位修得状況確認表（専門教育科目）'!O46","v":0},{"$f":"SUM(C$110:C115)","v":0}]
[null,"4年前期終了時",{"$f":"'単位修得状況確認表（専門教育科目）'!Q46","v":0},{"$f":"SUM(C$110:C116)","v":0}]
[null,"4年後期終了時",{"$f":"'単位修得状況確認表（専門教育科目）'!S46","v":0},{"$f":"SUM(C$110:C117)","v":0}]
[]
[]
[]
[]
[]
[]
[]
[null,"専門教育科目（選択科目B群）"]
[]
[null,null,"取得単位数","累積取得単位数"]
[null,"1年前期終了時",{"$f":"'単位修得状況確認表（専門教育科目）'!E60","v":0},{"$f":"SUM(C$128:C128)","v":0}]
[null,"1年後期終了時",{"$f":"'単位修得状況確認表（専門教育科目）'!G60","v":0},{"$f":"SUM(C$128:C129)","v":0}]
[null,"2年前期終了時",{"$f":"'単位修得状況確認表（専門教育科目）'!I60","v":0},{"$f":"SUM(C$128:C130)","v":0}]
[null,"2年後期終了時",{"$f":"'単位修得状況確認表（専門教育科目）'!K60","v":0},{"$f":"SUM(C$128:C131)","v":0}]
[null,"3年前期終了時",{"$f":"'単位修得状況確認表（専門教育科目）'!M60","v":0},{"$f":"SUM(C$128:C132)","v":0}]
[null,"3年後期終了時",{"$f":"'単位修得状況確認表（専門教育科目）'!O60","v":0},{"$f":"SUM(C$128:C133)","v":0}]
[null,"4年前期終了時",{"$f":"'単位修得状況確認表（専門教育科目）'!Q60","v":0},{"$f":"SUM(C$128:C134)","v":0}]
[null,"4年後期終了時",{"$f":"'単位修得状況確認表（専門教育科目）'!S60","v":0},{"$f":"SUM(C$128:C135)","v":0}]
[]
[]
[]
[]
[]
[]
[]
[null,"専門教育科目（選択科目C群）"]
[]
[null,null,"取得単位数","累積取得単位数"]
[null,"1年前期終了時",{"$f":"'単位修得状況確認表（専門教育科目）'!E77","v":0},{"$f":"SUM(C$146:C146)","v":0}]
[null,"1年後期終了時",{"$f":"'単位修得状況確認表（専門教育科目）'!G77","v":0},{"$f":"SUM(C$146:C147)","v":0}]
[null,"2年前期終了時",{"$f":"'単位修得状況確認表（専門教育科目）'!I77","v":0},{"$f":"SUM(C$146:C148)","v":0}]
[null,"2年後期終了時",{"$f":"'単位修得状況確認表（専門教育科目）'!K77","v":0},{"$f":"SUM(C$146:C149)","v":0}]
[null,"3年前期終了時",{"$f":"'単位修得状況確認表（専門教育科目）'!M77","v":0},{"$f":"SUM(C$146:C150)","v":0}]
[null,"3年後期終了時",{"$f":"'単位修得状況確認表（専門教育科目）'!O77","v":0},{"$f":"SUM(C$146:C151)","v":0}]
[null,"4年前期終了時",{"$f":"'単位修得状況確認表（専門教育科目）'!Q77","v":0},{"$f":"SUM(C$146:C152)","v":0}]
[null,"4年後期終了時",{"$f":"'単位修得状況確認表（専門教育科目）'!S77","v":0},{"$f":"SUM(C$146:C153)","v":0}]
[]
[]
[]
[]
[]
[]
[]
[]
[]
[]
[null,"累積単位数"]
[]
[null,null,"取得単位数","累積取得単位数"]
[null,"1年前期終了時",{"$f":"SUM(C6,E6,G6,C37,E37,C68,C86,C110,C128,C146)","v":0},{"$f":"SUM(C$167:C167)","v":0}]
[null,"1年後期終了時",{"$f":"SUM(C7,E7,G7,C38,E38,C69,C87,C111,C129,C147)","v":0},{"$f":"SUM(C$167:C168)","v":0}]
[null,"2年前期終了時",0,{"$f":"SUM(C$167:C169)","v":0}]
[null,"2年後期終了時",0,{"$f":"SUM(C$167:C170)","v":0}]
[null,"3年前期終了時",0,{"$f":"SUM(C$167:C171)","v":0}]
[null,"3年後期終了時",0,{"$f":"SUM(C$167:C172)","v":0}]
[null,"4年前期終了時",0,{"$f":"SUM(C$167:C173)","v":0}]
[null,"4年後期終了時",0,{"$f":"SUM(C$167:C174)","v":0}]
[]
[]
[]
[]
[]
[]
[]
[]
[]
[]
[]
[]
[]
[]
[]
[]
[]
[]
[]
[]
[]
[null,"GPA"]
[]
[null,null,"累積GP","累積GPA","GPA累積単位数","累積P","累積F"]
[null,"1年前期終了時",{"$f":"'単位修得状況確認表（共通教育科目，外国人留学生）'!I25+'単位修得状況確認表（専門教育科目）'!F79","v":0},{"$f":"IF(E199=0,\"\",C199/E199)","v":""},{"$f":"D167-F199+G199","v":0},{"$f":"'単位修得状況確認表（共通教育科目，外国人留学生）'!H28+'単位修得状況確認表（専門教育科目）'!E83","v":0},{"$f":"'単位修得状況確認表（共通教育科目，外国人留学生）'!H29+'単位修得状況確認表（専門教育科目）'!E84-'単位修得状況確認表（共通教育科目，外国人留学生）'!H30-'単位修得状況確認表（専門教育科目）'!E85","v":0}]
[null,"1年後期終了時",{"$f":"C199+'単位修得状況確認表（共通教育科目，外国人留学生）'!K25+'単位修得状況確認表（専門教育科目）'!H79","v":0},"",{"$f":"D168-F200+G200","v":0},{"$f":"F199+'単位修得状況確認表（共通教育科目，外国人留学生）'!J28+'単位修得状況確認表（専門教育科目）'!G83","v":0},{"$f":"G199+'単位修得状況確認表（共通教育科目，外国人留学生）'!J29+'単位修得状況確認表（専門教育科目）'!G84-'単位修得状況確認表（共通教育科目，外国人留学生）'!J30-'単位修得状況確認表（専門教育科目）'!G85","v":0}]
[null,"2年前期終了時",{"$f":"C200+'単位修得状況確認表（共通教育科目，外国人留学生）'!M25+'単位修得状況確認表（専門教育科目）'!J79","v":0},"",{"$f":"D169-F201+G201","v":0},{"$f":"F200+'単位修得状況確認表（共通教育科目，外国人留学生）'!L28+'単位修得状況確認表（専門教育科目）'!I83","v":0},{"$f":"G200+'単位修得状況確認表（共通教育科目，外国人留学生）'!L29+'単位修得状況確認表（専門教育科目）'!I84-'単位修得状況確認表（共通教育科目，外国人留学生）'!L30-'単位修得状況確認表（専門教育科目）'!I85","v":0}]
[null,"2年後期終了時",{"$f":"C201+'単位修得状況確認表（共通教育科目，外国人留学生）'!O25+'単位修得状況確認表（専門教育科目）'!L79","v":0},"",0,{"$f":"F201+'単位修得状況確認表（共通教育科目，外国人留学生）'!N28+'単位修得状況確認表（専門教育科目）'!K83","v":0},{"$f":"G201+'単位修得状況確認表（共通教育科目，外国人留学生）'!N29+'単位修得状況確認表（専門教育科目）'!K84-'単位修得状況確認表（共通教育科目，外国人留学生）'!N30-'単位修得状況確認表（専門教育科目）'!K85","v":0}]
[null,"3年前期終了時",{"$f":"C202+'単位修得状況確認表（共通教育科目，外国人留学生）'!Q25+'単位修得状況確認表（専門教育科目）'!N79","v":0},"",0,{"$f":"F202+'単位修得状況確認表（共通教育科目，外国人留学生）'!P28+'単位修得状況確認表（専門教育科目）'!M83","v":0},{"$f":"G202+'単位修得状況確認表（共通教育科目，外国人留学生）'!P29+'単位修得状況確認表（専門教育科目）'!M84-'単位修得状況確認表（共通教育科目，外国人留学生）'!P30-'単位修得状況確認表（専門教育科目）'!M85","v":0}]
[null,"3年後期終了時",{"$f":"C203+'単位修得状況確認表（共通教育科目，外国人留学生）'!S25+'単位修得状況確認表（専門教育科目）'!P79","v":0},"",0,{"$f":"F203+'単位修得状況確認表（共通教育科目，外国人留学生）'!R28+'単位修得状況確認表（専門教育科目）'!O83","v":0},{"$f":"G203+'単位修得状況確認表（共通教育科目，外国人留学生）'!R29+'単位修得状況確認表（専門教育科目）'!O84-'単位修得状況確認表（共通教育科目，外国人留学生）'!R30-'単位修得状況確認表（専門教育科目）'!O85","v":0}]
[null,"4年前期終了時",{"$f":"C204+'単位修得状況確認表（共通教育科目，外国人留学生）'!U25+'単位修得状況確認表（専門教育科目）'!R79","v":0},"",0,{"$f":"F204+'単位修得状況確認表（共通教育科目，外国人留学生）'!T28+'単位修得状況確認表（専門教育科目）'!Q83","v":0},{"$f":"G204+'単位修得状況確認表（共通教育科目，外国人留学生）'!T29+'単位修得状況確認表（専門教育科目）'!Q84-'単位修得状況確認表（共通教育科目，外国人留学生）'!T30-'単位修得状況確認表（専門教育科目）'!Q85","v":0}]
[null,"4年後期終了時",{"$f":"C205+'単位修得状況確認表（共通教育科目，外国人留学生）'!W25+'単位修得状況確認表（専門教育科目）'!T79","v":0},"",0,{"$f":"F205+'単位修得状況確認表（共通教育科目，外国人留学生）'!V28+'単位修得状況確認表（専門教育科目）'!S83","v":0},{"$f":"G205+'単位修得状況確認表（共通教育科目，外国人留学生）'!V29+'単位修得状況確認表（専門教育科目）'!S84-'単位修得状況確認表（共通教育科目，外国人留学生）'!V30-'単位修得状況確認表（専門教育科目）'!S85","v":0}]